bitfinex/quotes_SOLUSD_20250306
["timestamp","ask_amount","ask_price","bid_price","bid_amount"]
[1741280480888,18.64964886,144.75,144.65,51.72179667]
[1741280481090,0.6908,144.74,144.65,51.72179667]
[1741280481289,8.26,144.76,144.65,51.72179667]
[1741280481589,100.64964886,144.75,144.62,0.71924024]
[1741280481764,25.17144886,144.73,144.62,0.71924024]
[1741280481963,82.0,144.72,144.62,0.71924024]
[1741280482184,82.0,144.71,144.62,0.71924024]
[1741280482387,8.38,144.7,144.62,0.71924024]
[1741280482565,82.0,144.75,144.65,51.72179667]
[1741280482776,6.5767,144.79,144.66,1.45136793]
[1741280482960,3.4416124,144.84,144.73,51.72179667]
[1741280483285,0.6904,144.83,144.75,51.72179667]
[1741280483492,16.3825,144.85,144.76,51.72179667]
[1741280483493,15.347,144.85,144.76,51.72179667]
[1741280483669,15.347,144.85,144.77,51.72179667]
[1741280483876,15.347,144.85,144.75,312.0]
[1741280484191,18.64964886,144.84,144.7,8.4]
[1741280484362,18.64964886,144.84,144.7,67.03239667]
[1741280484683,18.64964886,144.84,144.71,0.14216157]
[1741280484857,18.64964886,144.84,144.71,51.86395824]
[1741280485056,18.64964886,144.82,144.7,60.12179667]
[1741280485261,18.64964886,144.82,144.67,384.34]
[1741280485262,18.64964886,144.82,144.67,309.152]
[1741280485567,18.64964886,144.82,144.69,51.72179667]
[1741280485768,2.4165,144.83,144.71,51.86395824]
[1741280485980,18.64964886,144.82,144.71,51.72179667]
[1741280486362,2.4165,144.83,144.71,51.72179667]
[1741280486681,0.6904,144.83,144.72,51.72179667]
[1741280486878,0.6904,144.83,144.73,51.72179667]
[1741280487081,2.0,144.78,144.62,0.71924024]
[1741280487308,18.64964886,144.76,144.62,0.71924024]
[1741280487459,18.64964886,144.74,144.62,0.71924024]
[1741280487661,5.11634061,144.76,144.62,0.71924024]
[1741280487974,18.64964886,144.75,144.62,0.71924024]
[1741280488377,18.64964886,144.73,144.62,0.71924024]
[1741280488785,18.64964886,144.75,144.62,0.71924024]
[1741280489082,2.418,144.74,144.62,0.71924024]
[1741280489289,102.64964886,144.73,144.62,0.71924024]
[1741280489472,100.64964886,144.73,144.62,0.71924024]
[1741280489971,102.64964886,144.73,144.62,0.71924024]
[1741280490291,18.95494886,144.71,144.62,0.71924024]
[1741280490456,18.64964886,144.69,144.58,312.0]
[1741280490658,6.0314,144.66,144.51,1.8507533]
[1741280490861,100.64964886,144.65,144.51,1.8507533]
[1741280491113,2.42,144.62,144.51,1.8507533]
[1741280491323,0.6914,144.62,144.53,51.72179667]
[1741280491508,0.6914,144.64,144.53,139.25245074]
[1741280491823,0.6911,144.69,144.57,1.6066]
[1741280491996,7.0251,144.72,144.63,51.72179667]
[1741280492185,0.6907,144.76,144.65,51.72179667]
[1741280492511,0.6907,144.76,144.67,51.72179667]
[1741280492688,0.6907,144.76,144.66,51.72179667]
[1741280493184,0.6907,144.77,144.63,8.66]
[1741280493404,100.64964886,144.76,144.6,6.9153]
[1741280493605,18.64964886,144.74,144.59,164.54]
[1741280493789,18.95494886,144.74,144.6,312.0]
[1741280494497,18.95494886,144.74,144.6,51.72179667]
[1741280494827,18.95494886,144.74,144.61,0.14216157]
[1741280495114,18.95494886,144.74,144.58,58.63829667]
[1741280495285,18.64964886,144.72,144.58,58.63829667]
[1741280495488,18.64964886,144.7,144.58,6.9165]
[1741280495799,18.64964886,144.7,144.58,58.63829667]
[1741280495995,18.64964886,144.7,144.57,1.6066]
[1741280496184,18.64964886,144.7,144.52,137.8]
[1741280496383,2.0,144.67,144.51,139.6507533]
[1741280496608,18.64964886,144.65,144.51,1.8507533]
[1741280496806,18.64964886,144.63,144.51,1.8507533]
[1741280496986,18.64964886,144.63,144.53,51.72179667]
[1741280497181,18.64964886,144.63,144.54,51.72179667]
[1741280497182,0.6914,144.63,144.54,51.72179667]
[1741280497386,20.37764886,144.68,144.56,51.72179667]
[1741280497610,1.728,144.68,144.59,312.0]
[1741280497998,8.94,144.7,144.6,0.14216157]
[1741280498198,9.631,144.7,144.57,12.05604544]
[1741280498424,11.3587,144.7,144.57,8.96]
[1741280498620,11.3587,144.7,144.56,0.14216157]
[1741280498827,11.3587,144.7,144.57,51.72179667]
[1741280499015,9.631,144.7,144.59,0.14216157]
[1741280499337,9.631,144.7,144.58,137.8]
[1741280499492,11.3587,144.7,144.55,0.14216157]
[1741280499829,16.8141,144.7,144.53,0.14216157]
[1741280500008,20.64964886,144.68,144.51,1.8507533]
[1741280500205,18.64964886,144.66,144.51,1.8507533]
[1741280500714,0.3053,144.64,144.51,1.8507533]
[1741280500909,18.64964886,144.62,144.51,1.8507533]
[1741280501106,18.64964886,144.6,144.51,1.8507533]
[1741280501625,9.0,144.6,144.51,1.8507533]
[1741280502034,27.64964886,144.6,144.51,1.8507533]
[1741280502502,9.0,144.6,144.51,1.8507533]
[1741280502705,9.0,144.6,144.52,51.86395824]
[1741280502899,9.0,144.6,144.52,0.14216157]
[1741280503131,0.6916,144.59,144.52,0.14216157]
[1741280503302,0.6916,144.59,144.51,1.8507533]
[1741280503626,2.4206,144.59,144.51,1.8507533]
[1741280503832,5.8786,144.59,144.51,1.8507533]
[1741280504037,0.3053,144.57,144.51,1.8507533]
[1741280504329,6.077,144.56,144.42,312.0]
[1741280504501,8.077,144.56,144.34,137.8]
[1741280504703,6.077,144.5,144.34,137.8]
[1741280504901,9.08,144.49,144.31,138.17844353]
[1741280505204,18.64964886,144.46,144.31,7.30774353]
[1741280505403,2.4225,144.47,144.32,1.45458685]
[1741280505731,2.4225,144.47,144.32,139.25458685]
[1741280505732,2.0,144.46,144.32,139.25458685]
[1741280505918,18.64964886,144.46,144.31,0.37844353]
[1741280506127,18.64964886,144.46,144.31,1.11385163]
[1741280506128,18.95494886,144.44,144.31,1.11385163]
[1741280506337,9.18,144.43,144.31,1.11385163]
[1741280506510,18.64964886,144.42,144.31,1.11385163]
[1741280506712,6.0062,144.41,144.21,1.8940126]
[1741280506935,50.0,144.3,144.21,1.8940126]
[1741280507128,0.693,144.28,144.21,1.8940126]
[1741280507439,164.72,144.37,144.21,1.8940126]
[1741280507440,83.7315,144.38,144.23,363.72179667]
[1741280507641,6.0062,144.41,144.27,51.72179667]
[1741280507849,6.0062,144.41,144.29,51.72179667]
[1741280508146,18.649649,144.46,144.34,51.72179667]
[1741280508447,0.6921,144.48,144.31,10.56]
[1741280508623,0.6921,144.48,144.32,1.45422919]
[1741280508825,17.8049,144.49,144.32,1.45422919]
[1741280509025,17.8049,144.49,144.31,63.73608498]
[1741280509215,19.5351,144.49,144.32,6.929]
[1741280509417,19.5351,144.49,144.33,53.17592009]
[1741280509745,17.8049,144.49,144.36,51.72179667]
[1741280509915,17.8048,144.49,144.37,1.45382857]
[1741280510113,17.8048,144.49,144.32,144.729]
[1741280510622,19.535,144.49,144.28,313.3]
[1741280510835,101.535,144.49,144.28,365.02179667]
[1741280511040,19.535,144.49,144.32,51.72179667]
[1741280511246,7.2248,144.49,144.36,51.72179667]
[1741280511837,7.2248,144.49,144.35,1.45402936]
[1741280512044,8.955,144.49,144.29,6.9304]
[1741280512216,8.955,144.49,144.29,51.72179667]
[1741280512421,12.22057873,144.49,144.28,6.9307]
[1741280512732,12.22057873,144.49,144.25,17.3309]
[1741280512733,2.0,144.41,144.22,196.45509667]
[1741280512933,10.86,144.4,144.22,189.52179667]
[1741280513136,6.1542,144.39,144.21,146.6282126]
[1741280513444,2.4241,144.38,144.22,51.72179667]
[1741280513619,2.4241,144.38,144.21,146.6282126]
[1741280513826,0.6926,144.38,144.25,51.72179667]
[1741280514025,0.6926,144.38,144.26,51.72179667]
[1741280514322,0.6926,144.38,144.22,137.8]
[1741280514533,0.6926,144.38,144.26,312.0]
[1741280514734,6.1542,144.39,144.27,1.45514788]
[1741280515025,6.8467,144.39,144.28,51.72179667]
[1741280515350,6.1542,144.39,144.29,51.72179667]
[1741280515538,6.1542,144.39,144.3,51.72179667]
[1741280516152,6.1542,144.39,144.29,51.72179667]
[1741280516323,0.6924,144.42,144.3,53.17645962]
[1741280516634,0.6924,144.42,144.31,51.72179667]
[1741280516831,0.6924,144.42,144.3,137.8]
[1741280517035,11.6522,144.45,144.32,51.72179667]
[1741280517244,11.6522,144.45,144.34,0.14216157]
[1741280517444,11.6522,144.45,144.28,7.07306157]
[1741280517751,13.3829,144.45,144.29,53.1767101]
[1741280518050,18.64964886,144.42,144.22,137.8]
[1741280518254,18.64964886,144.42,144.24,51.72179667]
[1741280518555,18.64964886,144.44,144.28,0.14216157]
[1741280518741,18.64964886,144.44,144.28,53.31869269]
[1741280518934,13.3829,144.45,144.28,191.11869269]
[1741280519128,13.3829,144.45,144.29,0.14216157]
[1741280519324,11.6522,144.45,144.32,51.86395824]
[1741280519640,18.64964886,144.42,144.22,6.9338]
[1741280519949,0.3053,144.41,144.27,51.75479667]
[1741280520124,0.3053,144.41,144.29,0.14216157]
[1741280520449,29.78964886,144.44,144.32,0.14216157]
[1741280520621,29.78964886,144.44,144.33,1.45449288]
[1741280520622,11.14,144.44,144.33,1.45449288]
[1741280520822,11.14,144.44,144.32,137.8]
[1741280521037,11.14,144.44,144.35,0.14216157]
[1741280521238,11.14,144.44,144.34,0.14216157]
[1741280521460,0.6923,144.43,144.33,137.8]
[1741280521656,0.6923,144.43,144.29,139.4555]
[1741280521657,2.4232,144.43,144.29,139.4555]
[1741280521835,0.6923,144.43,144.31,312.0]
[1741280522153,0.6923,144.43,144.32,0.14216157]
[1741280522456,0.6923,144.43,144.32,1.5967416]
[1741280522748,0.6923,144.43,144.32,137.94216157]
[1741280522952,11.14,144.44,144.34,0.14216157]
[1741280523127,0.03,144.45,144.37,51.72179667]
[1741280523333,0.03,144.45,144.38,1.59597041]
[1741280523650,0.03,144.45,144.38,8.52197041]
[1741280523855,0.03,144.45,144.4,0.14216157]
[1741280524042,0.03,144.45,144.42,0.14216157]
[1741280524351,0.03,144.45,144.44,51.86395824]
[1741280524552,6.2468,144.59,144.46,0.14216157]
[1741280524729,1.7586,144.62,144.51,0.14216157]
[1741280524730,0.03,144.62,144.51,0.14216157]
[1741280525050,0.7214,144.62,144.51,139.39462489]
[1741280525258,0.03,144.62,144.53,0.14216157]
[1741280525424,0.03,144.62,144.57,0.14216157]
[1741280526052,0.03,144.62,144.55,0.14216157]
[1741280526236,0.03,144.62,144.56,1.45197078]
[1741280526442,0.03,144.62,144.57,0.14216157]
[1741280526640,0.03,144.62,144.58,1.45170144]
[1741280527160,0.03,144.62,144.61,51.72179667]
[1741280527337,0.03,144.62,144.61,209.76478308]
[1741280527654,0.03,144.62,144.57,0.14216157]
[1741280527831,0.03,144.62,144.51,18.64964886]
[1741280528028,0.03,144.62,144.49,137.8]
[1741280528254,0.03,144.62,144.5,51.72179667]
[1741280528427,0.03,144.62,144.5,139.25268996]
[1741280528634,0.03,144.62,144.52,52.00611981]
[1741280528839,0.03,144.62,144.55,51.72179667]
[1741280529038,0.03,144.62,144.56,313.59403989]
[1741280529336,0.03,144.62,144.58,0.14216157]
[1741280529536,0.03,144.62,144.6,0.14216157]
[1741280529870,0.03,144.62,144.61,53.31532113]
[1741280530045,0.03,144.62,144.61,210.04929313]
[1741280530243,0.03,144.62,144.61,156.87613357]
[1741280530640,0.03,144.62,144.61,137.94216157]
[1741280531440,0.03,144.62,144.58,137.8]
[1741280531647,0.03,144.62,144.59,1.4516076]
[1741280532141,0.03,144.62,144.48,137.8]
[1741280532348,20.13124886,144.62,144.42,82.1]
[1741280532551,20.13124886,144.62,144.49,312.0]
[1741280532876,20.13124886,144.62,144.41,1.5005]
[1741280532877,20.64964886,144.59,144.41,1.5005]
[1741280533176,18.64964886,144.57,144.38,137.8]
[1741280533485,18.64964886,144.53,144.39,1.45367365]
[1741280533775,20.10124886,144.53,144.37,137.8]
[1741280534276,20.10124886,144.53,144.38,0.14216157]
[1741280534449,20.10124886,144.53,144.34,191.10239667]
[1741280534652,20.10124886,144.53,144.34,139.3806]
[1741280534851,18.64964886,144.51,144.35,1.45418331]
[1741280535061,18.64964886,144.49,144.33,137.8]
[1741280535370,18.64964886,144.47,144.34,1.45424091]
[1741280535684,2.4227,144.46,144.35,312.0]
[1741280535846,3.8743,144.46,144.35,312.0]
[1741280536672,5.8838,144.46,144.36,1.59640016]
[1741280536876,2.4227,144.46,144.36,139.39640016]
[1741280537079,0.6922,144.46,144.38,0.14216157]
[1741280537252,0.6922,144.46,144.39,1.45364688]
[1741280537453,0.6921,144.47,144.4,0.14216157]
[1741280537653,0.6921,144.47,144.42,0.14216157]
[1741280537963,0.6919,144.51,144.44,0.14216157]
[1741280538160,0.6919,144.51,144.46,0.14216157]
[1741280538374,1.7295,144.55,144.48,0.14216157]
[1741280538577,0.6917,144.56,144.48,0.14216157]
[1741280538969,0.6917,144.56,144.34,137.8]
[1741280538970,259.97578991,144.55,144.34,137.8]
[1741280539173,18.64964886,144.54,144.35,0.73020382]
[1741280539484,2.4214,144.54,144.4,51.72179667]
[1741280539780,2.4214,144.54,144.41,0.72900398]
[1741280539981,5.8806,144.54,144.44,0.14216157]
[1741280540282,5.8806,144.54,144.44,0.87095061]
[1741280540473,2.4214,144.54,144.44,0.87095061]
[1741280540851,21.07104886,144.54,144.38,51.72179667]
[1741280541181,5.8806,144.54,144.42,0.14216157]
[1741280541479,9.9797,144.59,144.44,18.79181043]
[1741280541480,2.4207,144.58,144.44,18.79181043]
[1741280541777,2.4207,144.58,144.46,0.14216157]
[1741280541975,4.2369095,144.58,144.46,0.14216157]
[1741280542182,2.4207,144.58,144.48,0.14216157]
[1741280542403,2.4207,144.58,144.49,0.72727976]
[1741280542683,2.4207,144.58,144.49,0.14216157]
[1741280542862,2.4207,144.58,144.51,0.14216157]
[1741280543055,2.4207,144.58,144.5,0.14216157]
[1741280543249,0.6916,144.58,144.52,0.14216157]
[1741280543449,1.7288,144.61,144.52,449.94216157]
[1741280543695,1.7288,144.61,144.53,0.14216157]
[1741280544197,1.7288,144.61,144.52,312.0]
[1741280544373,1.7288,144.61,144.53,0.14216157]
[1741280544970,1.7288,144.61,144.5,0.86879319]
[1741280545578,0.03,144.62,144.5,0.86879319]
[1741280545984,0.03,144.62,144.5,138.66879319]
[1741280546288,0.03,144.62,144.52,0.14216157]
[1741280546496,0.03,144.62,144.53,0.72607274]
[1741280546805,0.03,144.62,144.54,0.14216157]
[1741280547089,0.03,144.62,144.56,0.14216157]
[1741280547295,0.03,144.62,144.58,0.14216157]
[1741280547496,0.03,144.62,144.57,0.72531208]
[1741280547667,0.03,144.62,144.58,312.0]
[1741280548797,0.03,144.62,144.59,0.14216157]
[1741280548966,0.03,144.62,144.59,0.86727296]
[1741280549167,0.03,144.62,144.59,138.66727296]
[1741280549408,0.03,144.62,144.59,137.94216157]
[1741280549590,0.03,144.62,144.61,0.14216157]
[1741280549912,0.03,144.62,144.61,156.87613357]
[1741280550073,0.03,144.62,144.61,208.59793024]
[1741280550272,0.03,144.62,144.61,137.94216157]
[1741280550468,0.03,144.62,144.61,156.59181043]
[1741280550702,0.03,144.62,144.61,137.94216157]
[1741280551527,0.03,144.62,144.57,137.8]
[1741280551686,0.03,144.62,144.56,139.4327]
[1741280551887,0.03,144.62,144.57,0.72551522]
[1741280552207,0.03,144.62,144.61,0.14216157]
[1741280552397,0.03,144.62,144.61,138.66609655]
[1741280552584,0.03,144.62,144.61,137.94216157]
[1741280554490,0.03,144.62,144.58,137.8]
[1741280554687,0.03,144.62,144.56,1.6327]
[1741280554688,0.03,144.62,144.56,139.4327]
[1741280554929,0.03,144.62,144.56,137.8]
[1741280555112,0.03,144.62,144.52,137.8]
[1741280555282,0.03,144.62,144.54,18.64964886]
[1741280555486,0.03,144.62,144.55,312.72523918]
[1741280555692,0.03,144.62,144.5,137.8]
[1741280556193,0.03,144.62,144.51,0.72705427]
[1741280556409,0.03,144.62,144.52,0.14216157]
[1741280556616,0.03,144.62,144.51,137.8]
[1741280557125,10.94,144.61,144.49,137.8]
[1741280557291,10.94,144.61,144.5,19.37673201]
[1741280557702,0.03,144.62,144.52,51.72179667]
[1741280557994,0.03,144.62,144.5,164.09663201]
[1741280557995,0.7214,144.62,144.56,0.14216157]
[1741280558196,0.7214,144.62,144.57,0.72515754]
[1741280558406,0.03,144.62,144.57,0.72515754]
[1741280558615,0.03,144.62,144.58,312.14216157]
[1741280558820,0.03,144.62,144.56,137.8]
[1741280559131,0.03,144.62,144.57,0.86750475]
[1741280560125,0.03,144.62,144.57,0.14216157]
[1741280560511,0.03,144.62,144.54,137.8]
[1741280561288,0.03,144.62,144.5,148.7]
[1741280561519,0.03,144.62,144.5,137.8]
[1741280561695,2.45,144.62,144.5,137.8]
[1741280561897,1.81583487,144.61,144.5,312.0]
[1741280562213,1.81583487,144.61,144.44,144.7231]
[1741280562447,1.81583487,144.61,144.45,19.37745596]
[1741280562732,26.82664886,144.6,144.45,137.8]
[1741280562893,2.0,144.55,144.41,137.8]
[1741280563218,18.64964886,144.53,144.36,137.8]
[1741280563407,1.81724535,144.52,144.37,0.73009071]
[1741280563602,2.4221,144.5,144.37,138.53009071]
[1741280563919,1.81741837,144.49,144.35,137.8]
[1741280564222,1.81741837,144.49,144.36,0.73066242]
[1741280564523,1.81741837,144.49,144.34,137.833]
[1741280564524,6.6152,144.48,144.34,137.833]
[1741280564721,11.0,144.47,144.35,0.73092166]
[1741280565018,11.0,144.47,144.37,312.0]
[1741280565318,11.0,144.47,144.39,0.14216157]
[1741280565706,10.0,144.47,144.39,0.14216157]
[1741280565908,2.4227,144.46,144.39,0.14216157]
[1741280566630,2.4227,144.46,144.37,0.14216157]
[1741280566833,0.6922,144.46,144.37,18.79181043]
[1741280567124,0.6922,144.46,144.39,0.14216157]
[1741280567505,0.6922,144.46,144.39,0.72977841]
[1741280567706,1.7302,144.49,144.4,0.14216157]
[1741280568709,1.7302,144.49,144.4,312.14216157]
[1741280569108,1.7302,144.49,144.41,0.72974335]
[1741280569322,1.7302,144.49,144.42,0.14216157]
[1741280569729,39.56361648,144.54,144.42,0.14216157]
[1741280570027,5.8809,144.53,144.44,0.14216157]
[1741280570324,2.4215,144.53,144.46,0.14216157]
[1741280570831,2.4215,144.53,144.46,138.67014044]
[1741280571006,0.6918,144.53,144.48,0.14216157]
[1741280571202,0.7218,144.53,144.48,0.86994258]
[1741280571422,0.7218,144.53,144.47,0.14216157]
[1741280571423,2.4515,144.53,144.47,0.14216157]
[1741280571818,0.03,144.53,144.47,0.14216157]
[1741280572016,0.03,144.53,144.41,144.7243]
[1741280572213,0.03,144.53,144.43,18.79181043]
[1741280572435,0.03,144.53,144.49,0.14216157]
[1741280572619,0.03,144.53,144.49,0.86963119]
[1741280573526,0.03,144.53,144.51,0.14216157]
[1741280573824,0.03,144.53,144.52,26.43730508]
[1741280574033,0.03,144.53,144.52,157.31790508]
[1741280574328,0.03,144.53,144.52,137.94216157]
[1741280574724,0.03,144.53,144.5,0.14216157]
[1741280574922,0.03,144.53,144.5,0.86927769]
[1741280575108,0.03,144.53,144.5,0.72711612]
[1741280575310,0.03,144.53,144.47,137.8]
[1741280575704,0.03,144.53,144.48,0.14216157]
[1741280576010,0.03,144.53,144.48,312.0]
[1741280576215,0.03,144.53,144.44,137.8]
[1741280576625,0.03,144.53,144.45,0.72860042]
[1741280577305,0.03,144.53,144.46,0.14216157]
[1741280577529,0.03,144.53,144.47,0.72824451]
[1741280577728,0.03,144.53,144.47,137.8]
[1741280577929,0.03,144.53,144.42,156.44964886]
[1741280578107,0.03,144.53,144.42,137.8]
[1741280578302,0.03,144.53,144.39,137.8]
[1741280578519,1.84671265,144.53,144.39,137.8]
[1741280579002,0.03,144.53,144.4,0.72983483]
[1741280579207,0.03,144.53,144.42,0.14216157]
[1741280579416,0.03,144.53,144.42,138.52885972]
[1741280579728,0.03,144.53,144.42,137.8]
[1741280580035,2.4515,144.53,144.43,0.72967395]
[1741280580402,2.4515,144.53,144.42,0.72961464]
[1741280580805,5.9109,144.53,144.43,0.14216157]
[1741280581330,2.4515,144.53,144.45,0.14216157]
[1741280581539,2.4515,144.53,144.47,0.14216157]
[1741280581540,0.7218,144.53,144.47,0.14216157]
[1741280581832,0.03,144.53,144.46,0.72744962]
[1741280582038,0.03,144.53,144.47,0.14216157]
[1741280582724,0.03,144.53,144.46,0.14216157]
[1741280583828,0.03,144.53,144.42,137.8]
[1741280584039,0.03,144.53,144.43,0.72892718]
[1741280584338,0.03,144.53,144.42,312.0]
[1741280584514,1.81693401,144.52,144.4,137.8]
[1741280584712,16.8456,144.51,144.4,137.8]
[1741280585022,1.81724304,144.5,144.38,137.833]
[1741280585223,16.8456,144.51,144.4,0.14216157]
[1741280585422,16.8456,144.51,144.41,0.72894653]
[1741280585737,16.8456,144.51,144.42,0.14216157]
[1741280586041,0.692,144.5,144.44,0.14216157]
[1741280586245,2.4221,144.5,144.42,137.8]
[1741280586425,2.4221,144.5,144.38,82.133]
[1741280586426,2.4221,144.5,144.39,0.14216157]
[1741280586621,2.4221,144.5,144.39,0.87206918]
[1741280587540,2.4221,144.5,144.41,0.14216157]
[1741280587742,5.8823,144.5,144.41,0.14216157]
[1741280588044,5.8823,144.5,144.41,0.72972528]
[1741280588338,2.4221,144.5,144.42,0.14216157]
[1741280588544,2.4221,144.5,144.44,0.14216157]
[1741280588742,2.4221,144.5,144.42,137.8]
[1741280588948,7.69904365,144.5,144.38,0.033]
[1741280589132,18.64964886,144.49,144.31,383.793]
[1741280589441,18.64964886,144.47,144.32,0.73104065]
[1741280589643,12.27779513,144.46,144.32,0.73104065]
[1741280589841,12.27779513,144.46,144.33,0.14216157]
[1741280590036,5.8843,144.45,144.31,137.8]
[1741280590232,102.46784154,144.44,144.29,137.8]
[1741280590437,18.64964886,144.42,144.26,137.8]
[1741280590736,18.64964886,144.4,144.24,137.833]
[1741280590918,12.25908111,144.39,144.24,137.833]
[1741280591117,2.0,144.32,144.24,0.033]
[1741280591429,14.31936633,144.31,144.16,137.8]
[1741280591627,2.0,144.3,144.16,137.8]
[1741280591945,2.0,144.3,144.12,91.76736472]
[1741280591946,2.3054,144.25,144.12,148.43436472]
[1741280592243,12.5,144.24,144.12,10.63436472]
[1741280592457,2.0,144.22,144.12,10.63436472]
[1741280592631,6.72032425,144.23,144.08,137.8]
[1741280592826,6.72032425,144.23,144.04,15.8195583]
[1741280592827,18.64964886,144.22,144.04,15.8195583]
[1741280593146,1.82133014,144.21,144.04,154.35781858]
[1741280593327,1.82133014,144.21,144.04,153.6195583]
[1741280593646,1.82133014,144.21,144.07,51.72179667]
[1741280593843,1.82111394,144.22,144.08,52.45962454]
[1741280594050,0.6934,144.21,144.1,51.72179667]
[1741280594349,0.6934,144.21,144.13,0.14216157]
[1741280594643,0.6934,144.21,144.08,137.8]
[1741280594849,2.4269,144.21,144.09,0.73712335]
[1741280595026,2.4269,144.21,144.09,18.64964886]
[1741280595228,0.6934,144.21,144.09,138.537553]
[1741280595426,2.51409629,144.21,144.08,137.8]
[1741280595620,4.24759629,144.21,144.08,137.8]
[1741280595818,10.28455391,144.09,144.05,137.8]
[1741280596020,10.28455391,144.09,144.08,0.14216157]
[1741280596251,10.28455391,144.09,144.08,138.53734307]
[1741280596453,10.28455391,144.09,144.05,137.8]
[1741280596634,10.97855391,144.09,144.04,5.18519358]
[1741280596824,13.99760902,144.09,144.04,5.18519358]
[1741280597325,13.30360902,144.09,144.04,5.18519358]
[1741280597540,13.30360902,144.09,144.05,0.73841579]
[1741280597721,13.30360902,144.08,144.04,5.18519358]
[1741280597917,0.6941,144.07,144.0,2.0]
[1741280598244,13.99770902,144.07,144.0,2.0]
[1741280598427,13.30360902,144.07,144.0,312.0]
[1741280598630,13.30360902,144.07,143.93,63.60067529]
[1741280598942,13.30360902,144.07,143.99,52.23977882]
[1741280599149,13.30360902,144.06,144.0,52.23977882]
[1741280599339,13.30360902,144.06,143.99,19.40915108]
[1741280599545,13.30360902,144.06,143.99,71.6489299]
[1741280599733,13.30360902,144.06,144.02,0.14216157]
[1741280599921,10.5,144.13,144.02,0.14216157]
[1741280599922,9.93700519,144.08,144.02,0.14216157]
[1741280600122,9.93700519,144.08,144.02,71.79109147]
[1741280600333,10.63100519,144.08,143.99,0.14216157]
[1741280600515,10.63100519,144.08,144.01,0.14216157]
[1741280600715,10.5,144.13,144.01,0.14216157]
[1741280601023,18.64964886,144.11,143.98,19.40915108]
[1741280601330,18.64964886,144.11,143.97,52.23977882]
[1741280601531,18.64964886,144.11,143.95,29.90915108]
[1741280601743,18.64964886,144.09,143.98,312.0]
[1741280602052,0.6939,144.1,143.98,364.23977882]
[1741280602257,18.64964886,144.09,143.92,12.4740126]
[1741280602421,2.4288,144.1,143.97,52.23977882]
[1741280602622,2.4288,144.1,143.94,0.14216157]
[1741280602830,18.64964886,144.09,143.97,0.14216157]
[1741280603029,18.64964886,144.09,143.93,6.9474]
[1741280603228,20.47211925,144.09,143.94,52.23977882]
[1741280603428,20.47211925,144.09,143.94,137.8]
[1741280603633,20.47211925,144.09,143.92,12.4740126]
[1741280603856,18.64964886,144.07,143.92,1.8940126]
[1741280604163,21.07934886,144.05,143.92,1.03757176]
[1741280604451,18.64964886,144.03,143.92,1.03757176]
[1741280604822,2.4297,144.05,143.92,1.03757176]
[1741280604823,4.25296558,144.05,143.92,1.03757176]
[1741280605025,18.64964886,144.04,143.92,1.03757176]
[1741280605245,1.82315401,144.03,143.92,313.03757176]
[1741280605452,18.64964886,144.01,143.92,1.03757176]
[1741280606046,18.64964886,143.99,143.92,1.03757176]
[1741280606352,18.64964886,143.97,143.92,1.03757176]
[1741280606538,92.6,143.98,143.78,137.8]
[1741280606539,18.64964886,143.95,143.78,137.8]
[1741280606724,1.82463612,143.94,143.8,52.23977882]
[1741280606926,18.64964886,143.96,143.78,137.8]
[1741280607143,18.64964886,143.96,143.78,190.03977882]
[1741280607355,18.64964886,143.96,143.78,137.8]
[1741280607558,18.64964886,143.94,143.78,137.8]
[1741280607735,1.82435826,143.93,143.76,144.756]
[1741280608058,0.6948,143.92,143.8,52.23977882]
[1741280608228,18.64964886,143.91,143.8,0.8411376]
[1741280608556,0.6948,143.92,143.8,365.08091642]
[1741280608761,10.58,143.91,143.8,365.08091642]
[1741280608964,29.22964886,143.91,143.8,0.8411376]
[1741280609256,10.58,143.91,143.8,53.08091642]
[1741280609432,10.58,143.91,143.8,0.8411376]